[Event "Live Chess"]
[Site "Chess.com"]
[Date "2023.05.21"]
[Round "-"]
[White "MarkLim1"]
[Black "MaximKris"]
[Result "1-0"]
[WhiteElo "1682"]
[BlackElo "1826"]
[TimeControl "300"]
[EndTime "23:52:07 PDT"]
[Termination "MarkLim1 won by checkmate"]

1. d4 {[%clk 0:04:59.3]} 1... d5 {[%clk 0:04:58.7]} 2. Nf3 {[%clk 0:04:58.3]}
2... Nf6 {[%clk 0:04:57.7]} 3. c4 {[%clk 0:04:57.4]} 3... e6 {[%clk 0:04:56.3]}
4. cxd5 {[%clk 0:04:56.6]} 4... exd5 {[%clk 0:04:56.2]} 5. Nc3 {[%clk 0:04:56]}
5... Bf5 {[%clk 0:04:55.8]} 6. Bg5 {[%clk 0:04:54.7]} 6... Nc6 {[%clk
0:04:54.8]} 7. Qb3 {[%clk 0:04:48.7]} 7... Rb8 {[%clk 0:04:49.8]} 8. Bxf6 {[%clk
0:04:46]} 8... Qxf6 {[%clk 0:04:45.2]} 9. Nxd5 {[%clk 0:04:40.7]} 9... Qd6
{[%clk 0:04:43.4]} 10. Ne3 {[%clk 0:04:25.9]} 10... Qb4+ {[%clk 0:04:14.1]} 11.
Qxb4 {[%clk 0:04:23.9]} 11... Bxb4+ {[%clk 0:04:12]} 12. Kd1 {[%clk 0:04:05.8]}
12... Be4 {[%clk 0:04:04.4]} 13. Nc2 {[%clk 0:03:51.8]} 13... Bxc2+ {[%clk
0:03:43.8]} 14. Kxc2 {[%clk 0:03:50.1]} 14... O-O {[%clk 0:03:43.4]} 15. e3
{[%clk 0:03:46.6]} 15... Rfe8 {[%clk 0:03:38.7]} 16. Bd3 {[%clk 0:03:44.2]}
16... h6 {[%clk 0:03:29]} 17. Rac1 {[%clk 0:03:42.2]} 17... Bd6 {[%clk
0:03:26.9]} 18. Kb1 {[%clk 0:03:38.9]} 18... Nb4 {[%clk 0:03:10.9]} 19. Be2
{[%clk 0:03:34.7]} 19... a5 {[%clk 0:03:02.4]} 20. a3 {[%clk 0:03:33.4]} 20...
Nd5 {[%clk 0:02:58.7]} 21. Bc4 {[%clk 0:03:24.1]} 21... Nf6 {[%clk 0:02:54.5]}
22. Bd3 {[%clk 0:03:19.2]} 22... Ne4 {[%clk 0:02:50.4]} 23. Rc2 {[%clk
0:03:17.4]} 23... b5 {[%clk 0:02:48.1]} 24. Bxe4 {[%clk 0:03:11.5]} 24... Rxe4
{[%clk 0:02:48]} 25. Nd2 {[%clk 0:03:09.5]} 25... Ree8 {[%clk 0:02:45.4]} 26.
Nb3 {[%clk 0:03:08.6]} 26... a4 {[%clk 0:02:43.2]} 27. Nc5 {[%clk 0:03:06.4]}
27... Bxc5 {[%clk 0:02:28.3]} 28. Rxc5 {[%clk 0:03:04.5]} 28... Re7 {[%clk
0:02:25.8]} 29. Rhc1 {[%clk 0:03:02.4]} 29... Rb7 {[%clk 0:02:21.4]} 30. Kc2
{[%clk 0:02:55.9]} 30... Kf8 {[%clk 0:02:16.4]} 31. Kd3 {[%clk 0:02:53.6]} 31...
Ke8 {[%clk 0:02:13.2]} 32. f3 {[%clk 0:02:48.1]} 32... Kd7 {[%clk 0:02:05.8]}
33. e4 {[%clk 0:02:47.2]} 33... Ke6 {[%clk 0:01:58.8]} 34. f4 {[%clk 0:02:42.4]}
34... f5 {[%clk 0:01:55.4]} 35. d5+ {[%clk 0:02:39.6]} 35... Kf6 {[%clk
0:01:52]} 36. Rc6+ {[%clk 0:02:35.1]} 36... Kf7 {[%clk 0:01:50.1]} 37. e5 {[%clk
0:02:32.7]} 37... Ra7 {[%clk 0:01:42.6]} 38. R1c5 {[%clk 0:02:26.1]} 38... Ke8
{[%clk 0:01:39.2]} 39. Rxb5 {[%clk 0:02:21.9]} 39... Rd7 {[%clk 0:01:33]} 40.
Kd4 {[%clk 0:02:17.4]} 40... Ra8 {[%clk 0:01:26.3]} 41. e6 {[%clk 0:02:00.9]}
41... Re7 {[%clk 0:01:23.7]} 42. Ke5 {[%clk 0:01:59]} 42... Rd8 {[%clk
0:01:17.1]} 43. Kxf5 {[%clk 0:01:56.7]} 43... Kf8 {[%clk 0:01:09.9]} 44. Ke5
{[%clk 0:01:54.3]} 44... g5 {[%clk 0:01:06.9]} 45. fxg5 {[%clk 0:01:52.4]} 45...
hxg5 {[%clk 0:01:06.8]} 46. Rb7 {[%clk 0:01:48.2]} 46... Rg7 {[%clk 0:01:00.7]}
47. Rcxc7 {[%clk 0:01:43.4]} 47... Rxc7 {[%clk 0:00:58.7]} 48. Rxc7 {[%clk
0:01:42.6]} 48... Rb8 {[%clk 0:00:58.3]} 49. d6 {[%clk 0:01:34.4]} 49... Rxb2
{[%clk 0:00:55.7]} 50. Rc8+ {[%clk 0:01:33.4]} 50... Kg7 {[%clk 0:00:54]} 51. d7
{[%clk 0:01:29.1]} 51... Re2+ {[%clk 0:00:51]} 52. Kd6 {[%clk 0:01:28.1]} 52...
Rd2+ {[%clk 0:00:50.2]} 53. Ke7 {[%clk 0:01:27.1]} 53... Rd3 {[%clk 0:00:49.5]}
54. d8=Q {[%clk 0:01:25.8]} 54... Rxd8 {[%clk 0:00:49.4]} 55. Rxd8 {[%clk
0:01:25.2]} 55... Kg6 {[%clk 0:00:49.3]} 56. Kf8 {[%clk 0:01:23.2]} 56... Kf5
{[%clk 0:00:49.2]} 57. e7 {[%clk 0:01:22.4]} 57... Ke5 {[%clk 0:00:49.1]} 58.
e8=Q+ {[%clk 0:01:21.6]} 58... Kf4 {[%clk 0:00:48.2]} 59. Rd4+ {[%clk
0:01:19.7]} 59... Kf5 {[%clk 0:00:48.1]} 60. Qe4+ {[%clk 0:01:18.3]} 60... Kf6
{[%clk 0:00:47.4]} 61. Rd6# {[%clk 0:01:15.5]} 1-0

[Event "Live Chess"]
[Site "Chess.com"]
[Date "2023.05.21"]
[Round "-"]
[White "Tushinskiy"]
[Black "HoarseyHorsey"]
[Result "0-1"]
[WhiteElo "2172"]
[BlackElo "1450"]
[TimeControl "300"]
[EndTime "23:52:19 PDT"]
[Termination "HoarseyHorsey won on time"]

1. d4 {[%clk 0:04:57.8]} 1... Nf6 {[%clk 0:04:58.8]} 2. c3 {[%clk 0:04:57.7]}
2... d5 {[%clk 0:04:57.9]} 3. Nf3 {[%clk 0:04:57.6]} 3... Bg4 {[%clk 0:04:57]}
4. Bf4 {[%clk 0:04:57.5]} 4... e6 {[%clk 0:04:56.3]} 5. Bg3 {[%clk 0:04:57.4]}
5... Bd6 {[%clk 0:04:52.5]} 6. Nbd2 {[%clk 0:04:55.6]} 6... O-O {[%clk
0:04:51.1]} 7. e3 {[%clk 0:04:54.3]} 7... c6 {[%clk 0:04:49]} 8. Bd3 {[%clk
0:04:51.2]} 8... Re8 {[%clk 0:04:46.8]} 9. Qb1 {[%clk 0:04:46.4]} 9... Qe7
{[%clk 0:04:43]} 10. Ne5 {[%clk 0:04:25.4]} 10... Bh5 {[%clk 0:04:33.9]} 11. f4
{[%clk 0:04:18.3]} 11... Nbd7 {[%clk 0:04:20.3]} 12. Bh4 {[%clk 0:04:00.8]}
12... Qf8 {[%clk 0:04:02.2]} 13. Nxd7 {[%clk 0:03:14.4]} 13... Nxd7 {[%clk
0:03:44.5]} 14. Bxh7+ {[%clk 0:03:07.1]} 14... Kh8 {[%clk 0:03:43.6]} 15. Bd3
{[%clk 0:03:07]} 15... Be7 {[%clk 0:03:34.9]} 16. Bg3 {[%clk 0:03:04.4]} 16...
Nf6 {[%clk 0:03:24.1]} 17. Nf3 {[%clk 0:02:36.6]} 17... Ne4 {[%clk 0:02:44.7]}
18. Bxe4 {[%clk 0:02:33.3]} 18... dxe4 {[%clk 0:02:44.6]} 19. Qxe4 {[%clk
0:02:31.3]} 19... Bg6 {[%clk 0:02:41.9]} 20. Qe5 {[%clk 0:02:29.9]} 20... Bf6
{[%clk 0:02:37.2]} 21. Qa5 {[%clk 0:02:27.7]} 21... b6 {[%clk 0:02:29.5]} 22.
Qa3 {[%clk 0:02:25.5]} 22... Qxa3 {[%clk 0:02:23.8]} 23. bxa3 {[%clk 0:02:25.4]}
23... Bd3 {[%clk 0:02:14.2]} 24. Kd2 {[%clk 0:02:11.4]} 24... Bh7 {[%clk
0:02:06.7]} 25. Rhd1 {[%clk 0:01:54]} 25... Red8 {[%clk 0:02:04.6]} 26. Ke2
{[%clk 0:01:53]} 26... Rd7 {[%clk 0:01:55.8]} 27. Rac1 {[%clk 0:01:27.5]} 27...
Rad8 {[%clk 0:01:53.8]} 28. Bf2 {[%clk 0:01:26.6]} 28... Be7 {[%clk 0:01:43]}
29. h3 {[%clk 0:01:17.2]} 29... Bxa3 {[%clk 0:01:41.1]} 30. g4 {[%clk
0:01:11.1]} 30... Bxc1 {[%clk 0:01:39.6]} 31. Rxc1 {[%clk 0:01:11]} 31... c5
{[%clk 0:01:33.3]} 32. Ne5 {[%clk 0:01:09.4]} 32... Rc7 {[%clk 0:01:18.1]} 33.
Be1 {[%clk 0:00:58.2]} 33... b5 {[%clk 0:01:12.8]} 34. Bd2 {[%clk 0:00:53.7]}
34... f6 {[%clk 0:01:10.8]} 35. Nd3 {[%clk 0:00:50.3]} 35... cxd4 {[%clk
0:01:05.6]} 36. exd4 {[%clk 0:00:47]} 36... Rdc8 {[%clk 0:00:58.3]} 37. Nc5
{[%clk 0:00:42.2]} 37... Rc6 {[%clk 0:00:54.4]} 38. Be3 {[%clk 0:00:32.2]} 38...
Re8 {[%clk 0:00:41.1]} 39. Kd2 {[%clk 0:00:29.6]} 39... Rd6 {[%clk 0:00:36.5]}
40. Ra1 {[%clk 0:00:19.4]} 40... e5 {[%clk 0:00:34.3]} 41. f5 {[%clk 0:00:18.5]}
41... exd4 {[%clk 0:00:32.3]} 42. cxd4 {[%clk 0:00:18.4]} 42... Rd5 {[%clk
0:00:30.1]} 43. Rb1 {[%clk 0:00:16.7]} 43... Red8 {[%clk 0:00:26.7]} 44. Rxb5
{[%clk 0:00:12.9]} 44... Bg8 {[%clk 0:00:25]} 45. Ra5 {[%clk 0:00:10.9]} 45...
a6 {[%clk 0:00:21.9]} 46. Kc3 {[%clk 0:00:09.7]} 46... R5d6 {[%clk 0:00:20.2]}
47. Ra4 {[%clk 0:00:07]} 47... Rc8 {[%clk 0:00:19.1]} 48. Bf4 {[%clk 0:00:05.7]}
48... Rdc6 {[%clk 0:00:17.5]} 49. Kd3 {[%clk 0:00:04.7]} 49... Bd5 {[%clk
0:00:15.9]} 50. Ke3 {[%clk 0:00:03.7]} 50... Bc4 {[%clk 0:00:14.8]} 51. Kf2
{[%clk 0:00:02.9]} 51... Bb5 {[%clk 0:00:13.7]} 52. Rb4 {[%clk 0:00:02.3]} 52...
Re8 {[%clk 0:00:12.5]} 53. Rb2 {[%clk 0:00:01.1]} 53... Rxc5 {[%clk 0:00:10.6]}
54. dxc5 {[%clk 0:00:00.8]} 54... Rd8 {[%clk 0:00:09.9]} 55. Rd2 {[%clk
0:00:00.4]} 55... Rc8 {[%clk 0:00:09.5]} 0-1

[Event "Live Chess"]
[Site "Chess.com"]
[Date "2023.05.21"]
[Round "-"]
[White "EdenHazard8"]
[Black "GiacoPietro"]
[Result "1-0"]
[WhiteElo "1967"]
[BlackElo "627"]
[TimeControl "300"]
[EndTime "23:52:21 PDT"]
[Termination "EdenHazard8 won by resignation"]

1. e4 {[%clk 0:04:57.9]} 1... e5 {[%clk 0:04:55.4]} 2. Nf3 {[%clk 0:04:56.6]}
2... Nc6 {[%clk 0:04:54]} 3. Bc4 {[%clk 0:04:56.1]} 3... a6 {[%clk 0:04:28.6]}
4. d4 {[%clk 0:04:53.1]} 4... b5 {[%clk 0:04:24.8]} 5. Bb3 {[%clk 0:04:51.5]}
5... d6 {[%clk 0:04:06.9]} 6. dxe5 {[%clk 0:04:47.7]} 6... Nxe5 {[%clk
0:04:03.1]} 7. Nxe5 {[%clk 0:04:44.4]} 7... dxe5 {[%clk 0:04:00.4]} 8. Bxf7+
{[%clk 0:04:44.1]} 8... Kxf7 {[%clk 0:03:57.1]} 9. Qxd8 {[%clk 0:04:41.5]} 9...
Bb7 {[%clk 0:03:46.5]} 10. Qxc7+ {[%clk 0:04:38.1]} 10... Ne7 {[%clk 0:03:35.4]}
11. Qxb7 {[%clk 0:04:36.9]} 1-0

[Event "Live Chess"]
[Site "Chess.com"]
[Date "2023.05.21"]
[Round "-"]
[White "Singapourfeuj"]
[Black "CroasArRheun"]
[Result "1-0"]
[WhiteElo "2215"]
[BlackElo "1824"]
[TimeControl "300"]
[EndTime "23:52:29 PDT"]
[Termination "Singapourfeuj won by resignation"]

1. d4 {[%clk 0:04:58.7]} 1... d5 {[%clk 0:04:58.6]} 2. c4 {[%clk 0:04:57.5]}
2... e6 {[%clk 0:04:57.9]} 3. Nf3 {[%clk 0:04:56.6]} 3... Nf6 {[%clk 0:04:57]}
4. Nc3 {[%clk 0:04:56]} 4... Be7 {[%clk 0:04:56.1]} 5. cxd5 {[%clk 0:04:55.3]}
5... exd5 {[%clk 0:04:55.5]} 6. Bg5 {[%clk 0:04:54.5]} 6... c6 {[%clk
0:04:55.1]} 7. Qc2 {[%clk 0:04:53.7]} 7... Bd7 {[%clk 0:04:54.4]} 8. e3 {[%clk
0:04:53.1]} 8... Be6 {[%clk 0:04:53.7]} 9. Bd3 {[%clk 0:04:52]} 9... Nbd7 {[%clk
0:04:53.4]} 10. O-O {[%clk 0:04:51.1]} 10... h6 {[%clk 0:04:53]} 11. Bh4 {[%clk
0:04:50.2]} 11... Nh5 {[%clk 0:04:52.5]} 12. Bxe7 {[%clk 0:04:48.2]} 12... Qxe7
{[%clk 0:04:52.4]} 13. Rae1 {[%clk 0:04:46.5]} 13... Nhf6 {[%clk 0:04:51.5]} 14.
Ne5 {[%clk 0:04:45.5]} 14... O-O {[%clk 0:04:51.4]} 15. f4 {[%clk 0:04:44.3]}
15... c5 {[%clk 0:04:46.2]} 16. Kh1 {[%clk 0:04:41.9]} 16... cxd4 {[%clk
0:04:45.3]} 17. exd4 {[%clk 0:04:40.7]} 17... Qb4 {[%clk 0:04:41]} 18. f5 {[%clk
0:04:35.2]} 18... Nxe5 {[%clk 0:04:37.2]} 19. dxe5 {[%clk 0:04:34.3]} 19... d4
{[%clk 0:04:14.2]} 20. fxe6 {[%clk 0:04:32.3]} 20... Ng4 {[%clk 0:04:05]} 21.
exf7+ {[%clk 0:04:24.8]} 21... Kh8 {[%clk 0:04:00]} 22. Nd5 {[%clk 0:04:21.1]}
22... Qa5 {[%clk 0:03:47.6]} 23. Be4 {[%clk 0:04:19.3]} 23... Rxf7 {[%clk
0:03:38.4]} 24. b4 {[%clk 0:04:15.7]} 24... Rxf1+ {[%clk 0:03:33.1]} 25. Rxf1
{[%clk 0:04:14.2]} 25... Qd8 {[%clk 0:03:25]} 26. e6 {[%clk 0:04:06.9]} 26...
Rc8 {[%clk 0:03:06.2]} 27. e7 {[%clk 0:04:03.2]} 27... Qe8 {[%clk 0:02:56.6]}
28. Qxc8 {[%clk 0:04:00.3]} 1-0

[Event "Live Chess"]
[Site "Chess.com"]
[Date "2023.05.21"]
[Round "-"]
[White "Driftboard"]
[Black "Supertromp"]
[Result "0-1"]
[WhiteElo "772"]
[BlackElo "2138"]
[TimeControl "300"]
[EndTime "23:52:42 PDT"]
[Termination "Supertromp won by checkmate"]

1. e4 {[%clk 0:04:58.9]} 1... c5 {[%clk 0:04:58.7]} 2. Nf3 {[%clk 0:04:57.6]}
2... d6 {[%clk 0:04:56.9]} 3. Nc3 {[%clk 0:04:56.3]} 3... Nf6 {[%clk 0:04:47.2]}
4. Bc4 {[%clk 0:04:55.3]} 4... g6 {[%clk 0:04:44.4]} 5. O-O {[%clk 0:04:54.9]}
5... Bg7 {[%clk 0:04:40.7]} 6. d3 {[%clk 0:04:54.4]} 6... O-O {[%clk 0:04:38.3]}
7. Bg5 {[%clk 0:04:54]} 7... Nc6 {[%clk 0:04:36.4]} 8. Bxf6 {[%clk 0:04:52.6]}
8... Bxf6 {[%clk 0:04:34.7]} 9. Bd5 {[%clk 0:04:51.5]} 9... Bg4 {[%clk 0:04:31]}
10. Bxc6 {[%clk 0:04:50.8]} 10... bxc6 {[%clk 0:04:29.3]} 11. h3 {[%clk
0:04:50.4]} 11... Be6 {[%clk 0:04:16.5]} 12. d4 {[%clk 0:04:35.2]} 12... cxd4
{[%clk 0:04:13.9]} 13. Nxd4 {[%clk 0:04:32.4]} 13... Bc4 {[%clk 0:04:13.4]} 14.
Re1 {[%clk 0:04:27.3]} 14... c5 {[%clk 0:04:12.4]} 15. Nc6 {[%clk 0:04:21.2]}
15... Qb6 {[%clk 0:04:10.3]} 16. Nxe7+ {[%clk 0:04:15.4]} 16... Bxe7 {[%clk
0:04:09.1]} 17. e5 {[%clk 0:04:13.5]} 17... dxe5 {[%clk 0:04:06.8]} 18. Rxe5
{[%clk 0:04:12]} 18... Bf6 {[%clk 0:04:06.2]} 19. Re1 {[%clk 0:04:03.9]} 19...
Qxb2 {[%clk 0:04:04]} 20. Ne4 {[%clk 0:03:54.7]} 20... Qxa1 {[%clk 0:04:02.7]}
21. Qxa1 {[%clk 0:03:52.4]} 21... Bxa1 {[%clk 0:04:01.4]} 22. Rxa1 {[%clk
0:03:51.9]} 22... Rac8 {[%clk 0:03:59.6]} 23. Nf6+ {[%clk 0:03:46.9]} 23... Kg7
{[%clk 0:03:58.5]} 24. Nd7 {[%clk 0:03:45.6]} 24... f6 {[%clk 0:03:55.3]} 25.
Nxf8 {[%clk 0:03:44.2]} 25... Rxf8 {[%clk 0:03:53.2]} 26. Rd1 {[%clk 0:03:42.3]}
26... Be6 {[%clk 0:03:51.3]} 27. Kh2 {[%clk 0:03:37.6]} 27... Kf7 {[%clk
0:03:50]} 28. Kg3 {[%clk 0:03:37]} 28... Ke7 {[%clk 0:03:48.5]} 29. Kf4 {[%clk
0:03:36]} 29... Rd8 {[%clk 0:03:47.9]} 30. Rxd8 {[%clk 0:03:34]} 30... Kxd8
{[%clk 0:03:46.9]} 31. Ke4 {[%clk 0:03:33.4]} 31... Bxa2 {[%clk 0:03:46.4]} 32.
Kd3 {[%clk 0:03:30.4]} 32... a5 {[%clk 0:03:43.3]} 33. Kc3 {[%clk 0:03:28.8]}
33... Kc7 {[%clk 0:03:42.3]} 34. Kb2 {[%clk 0:03:26.7]} 34... Bd5 {[%clk
0:03:40.5]} 35. Ka3 {[%clk 0:03:25.2]} 35... Kb6 {[%clk 0:03:39.9]} 36. Ka4
{[%clk 0:03:24.3]} 36... Bc6+ {[%clk 0:03:39.8]} 37. Ka3 {[%clk 0:03:22.1]}
37... c4 {[%clk 0:03:38.9]} 38. c3 {[%clk 0:03:20.7]} 38... Kc5 {[%clk
0:03:38.8]} 39. Kb2 {[%clk 0:03:17.5]} 39... Bxg2 {[%clk 0:03:37.9]} 40. Kc2
{[%clk 0:03:15.2]} 40... Bxh3 {[%clk 0:03:32.9]} 41. Kd2 {[%clk 0:03:14]} 41...
Bf5 {[%clk 0:03:32]} 42. Kc1 {[%clk 0:03:11]} 42... a4 {[%clk 0:03:31.9]} 43.
Kb2 {[%clk 0:03:09.9]} 43... h6 {[%clk 0:03:31.8]} 44. Ka3 {[%clk 0:03:08.8]}
44... h5 {[%clk 0:03:31.7]} 45. Kxa4 {[%clk 0:03:08.1]} 45... h4 {[%clk
0:03:31.6]} 46. Ka3 {[%clk 0:03:07.8]} 46... h3 {[%clk 0:03:31.5]} 47. Kb2
{[%clk 0:03:07.4]} 47... h2 {[%clk 0:03:31.4]} 48. Kc1 {[%clk 0:03:07]} 48...
h1=Q+ {[%clk 0:03:31.3]} 49. Kd2 {[%clk 0:03:06.4]} 49... Qf3 {[%clk 0:03:31.2]}
50. Kc1 {[%clk 0:03:04.6]} 50... Qxf2 {[%clk 0:03:30.5]} 51. Kd1 {[%clk
0:03:02.8]} 51... Qf1+ {[%clk 0:03:20.4]} 52. Kd2 {[%clk 0:03:01.6]} 52... Qd3+
{[%clk 0:03:20]} 53. Ke1 {[%clk 0:03:00.6]} 53... Qxc3+ {[%clk 0:03:16.9]} 54.
Kf2 {[%clk 0:02:59.9]} 54... Qd2+ {[%clk 0:03:15.8]} 55. Kf3 {[%clk 0:02:59.5]}
55... Bc8 {[%clk 0:03:13.1]} 56. Kg3 {[%clk 0:02:59.3]} 56... c3 {[%clk
0:03:12.6]} 57. Kf3 {[%clk 0:02:57.7]} 57... c2 {[%clk 0:03:12.5]} 58. Kg3
{[%clk 0:02:57]} 58... c1=Q {[%clk 0:03:12.4]} 59. Kf3 {[%clk 0:02:56.5]} 59...
Qcc3+ {[%clk 0:03:11.8]} 60. Ke4 {[%clk 0:02:51.1]} 60... Bf5# {[%clk
0:03:11.7]} 0-1

[Event "Live Chess"]
[Site "Chess.com"]
[Date "2023.05.21"]
[Round "-"]
[White "febray_27"]
[Black "matt1979"]
[Result "1-0"]
[WhiteElo "2003"]
[BlackElo "1520"]
[TimeControl "300"]
[EndTime "23:52:43 PDT"]
[Termination "febray_27 won by resignation"]

1. Nf3 {[%clk 0:04:57.3]} 1... f5 {[%clk 0:04:55.9]} 2. d4 {[%clk 0:04:55.7]}
2... e6 {[%clk 0:04:53.7]} 3. g3 {[%clk 0:04:54.8]} 3... Nf6 {[%clk 0:04:52.6]}
4. Bg2 {[%clk 0:04:54.1]} 4... Be7 {[%clk 0:04:50.3]} 5. O-O {[%clk 0:04:53.5]}
5... O-O {[%clk 0:04:49.2]} 6. c4 {[%clk 0:04:52.1]} 6... d6 {[%clk 0:04:46.1]}
7. Nc3 {[%clk 0:04:51.1]} 7... Qe8 {[%clk 0:04:39.9]} 8. Re1 {[%clk 0:04:43.5]}
8... Ne4 {[%clk 0:04:38.4]} 9. Qc2 {[%clk 0:04:39]} 9... Nxc3 {[%clk 0:04:36.9]}
10. Qxc3 {[%clk 0:04:37.2]} 10... a5 {[%clk 0:04:32.3]} 11. b3 {[%clk
0:04:35.7]} 11... Nd7 {[%clk 0:04:25.1]} 12. Bb2 {[%clk 0:04:32.3]} 12... Nf6
{[%clk 0:04:23.7]} 13. Nd2 {[%clk 0:04:27.2]} 13... c6 {[%clk 0:04:18.7]} 14.
Rad1 {[%clk 0:04:16.5]} 14... Bd8 {[%clk 0:04:01.1]} 15. e4 {[%clk 0:04:08.7]}
15... fxe4 {[%clk 0:03:59.4]} 16. Nxe4 {[%clk 0:04:07.4]} 16... Nxe4 {[%clk
0:03:58.4]} 17. Bxe4 {[%clk 0:04:06.4]} 17... Qf7 {[%clk 0:03:54.5]} 18. Qe3
{[%clk 0:03:43.4]} 18... Bg5 {[%clk 0:03:44.4]} 19. f4 {[%clk 0:03:26.4]} 19...
Bh6 {[%clk 0:03:33.6]} 20. Rf1 {[%clk 0:03:19.6]} 20... e5 {[%clk 0:03:24.5]}
21. dxe5 {[%clk 0:03:17]} 21... dxe5 {[%clk 0:03:22.7]} 22. Bxe5 {[%clk
0:03:15.7]} 22... Bh3 {[%clk 0:03:16.1]} 23. Bg2 {[%clk 0:02:57.2]} 23... Bxg2
{[%clk 0:03:14.3]} 24. Kxg2 {[%clk 0:02:56.8]} 24... Qg6 {[%clk 0:03:01.9]} 25.
Rd6 {[%clk 0:02:48.5]} 25... Qc2+ {[%clk 0:02:57.9]} 26. Rf2 {[%clk 0:02:48]}
26... Qf5 {[%clk 0:02:51.7]} 27. Qd4 {[%clk 0:02:27.5]} 27... Rae8 {[%clk
0:02:42.4]} 28. c5 {[%clk 0:02:01.7]} 28... Rf7 {[%clk 0:02:05.4]} 29. Qc4
{[%clk 0:01:13.7]} 29... Kh8 {[%clk 0:01:57.4]} 30. Qd4 {[%clk 0:01:02.9]} 30...
Kg8 {[%clk 0:01:37]} 31. Rd8 {[%clk 0:00:49.2]} 31... Rxd8 {[%clk 0:01:30.8]}
32. Qxd8+ {[%clk 0:00:48.7]} 32... Rf8 {[%clk 0:01:29.6]} 33. Qd4 {[%clk
0:00:48.2]} 33... Qf7 {[%clk 0:01:21.6]} 34. Bd6 {[%clk 0:00:45.3]} 34... Rd8
{[%clk 0:01:18]} 35. Qe5 {[%clk 0:00:43.5]} 35... g6 {[%clk 0:01:12]} 36. Re2
{[%clk 0:00:40.4]} 36... Bg7 {[%clk 0:01:09]} 37. Qe7 {[%clk 0:00:36.3]} 37...
Qxe7 {[%clk 0:01:05]} 38. Rxe7 {[%clk 0:00:35.1]} 38... Rb8 {[%clk 0:00:59.5]}
39. Bxb8 {[%clk 0:00:33.8]} 1-0

[Event "Live Chess"]
[Site "Chess.com"]
[Date "2023.05.21"]
[Round "-"]
[White "rmethornhill"]
[Black "Ian-Morley"]
[Result "0-1"]
[WhiteElo "1170"]
[BlackElo "1029"]
[TimeControl "300"]
[EndTime "23:52:53 PDT"]
[Termination "Ian-Morley won by resignation"]

1. d4 {[%clk 0:04:58.4]} 1... e5 {[%clk 0:04:58.8]} 2. dxe5 {[%clk 0:04:57]}
2... Nc6 {[%clk 0:04:58.2]} 3. e4 {[%clk 0:04:55.3]} 3... Qe7 {[%clk 0:04:57.5]}
4. e6 {[%clk 0:04:48.6]} 4... Qxe6 {[%clk 0:04:54.3]} 5. Nc3 {[%clk 0:04:46.7]}
5... Bb4 {[%clk 0:04:52.4]} 6. Bd3 {[%clk 0:04:39]} 6... Nf6 {[%clk 0:04:50.6]}
7. f3 {[%clk 0:04:17]} 7... Nd4 {[%clk 0:04:45.9]} 8. Be3 {[%clk 0:04:08.7]}
8... c5 {[%clk 0:04:43.9]} 9. Ne2 {[%clk 0:04:05.5]} 9... d6 {[%clk 0:04:40.2]}
10. Bb5+ {[%clk 0:04:03.1]} 10... Bd7 {[%clk 0:04:38.4]} 11. Bxd7+ {[%clk
0:04:01.8]} 11... Nxd7 {[%clk 0:04:37.1]} 12. O-O {[%clk 0:04:01.1]} 12... Nxe2+
{[%clk 0:04:35.3]} 13. Qxe2 {[%clk 0:03:59.6]} 13... Bxc3 {[%clk 0:04:34]} 14.
bxc3 {[%clk 0:03:58.6]} 14... Ne5 {[%clk 0:04:32.2]} 15. Rab1 {[%clk 0:03:56.1]}
15... b6 {[%clk 0:04:31]} 16. Rfd1 {[%clk 0:03:53.4]} 16... O-O {[%clk
0:04:28.9]} 17. Bf4 {[%clk 0:03:51.8]} 17... Rad8 {[%clk 0:04:24.3]} 18. Rd5
{[%clk 0:03:45.1]} 18... Ng6 {[%clk 0:04:17.5]} 19. Bg3 {[%clk 0:03:38]} 19...
f5 {[%clk 0:04:14.6]} 20. Rbd1 {[%clk 0:03:27.8]} 20... fxe4 {[%clk 0:04:13]}
21. Qxe4 {[%clk 0:03:10]} 21... Qxe4 {[%clk 0:03:52.9]} 22. fxe4 {[%clk
0:03:08.5]} 22... Rd7 {[%clk 0:03:41.4]} 23. Rxd6 {[%clk 0:03:06.9]} 23... Rxd6
{[%clk 0:03:40.6]} 24. Rxd6 {[%clk 0:03:06]} 24... Nf4 {[%clk 0:03:35.9]} 25.
Bxf4 {[%clk 0:03:04.3]} 25... Rxf4 {[%clk 0:03:34.8]} 26. e5 {[%clk 0:03:02.9]}
26... Re4 {[%clk 0:03:34]} 27. e6 {[%clk 0:03:01.8]} 27... Kf8 {[%clk
0:03:32.6]} 28. Kf2 {[%clk 0:02:59.9]} 28... Ke7 {[%clk 0:03:31.1]} 29. Rd7+
{[%clk 0:02:56.5]} 29... Kxe6 {[%clk 0:03:30.3]} 30. Rxg7 {[%clk 0:02:52.2]}
30... a5 {[%clk 0:03:28]} 31. Rxh7 {[%clk 0:02:51.1]} 31... Kd5 {[%clk
0:03:26.7]} 32. Rh5+ {[%clk 0:02:49.5]} 32... Kc4 {[%clk 0:03:26]} 33. Rh6
{[%clk 0:02:44.8]} 33... b5 {[%clk 0:03:24.8]} 34. g3 {[%clk 0:02:42.3]} 34...
Kxc3 {[%clk 0:03:24]} 35. Rc6 {[%clk 0:02:37.4]} 35... c4 {[%clk 0:03:22.6]} 36.
Ra6 {[%clk 0:02:35.2]} 36... a4 {[%clk 0:03:21.6]} 37. Rf6 {[%clk 0:02:30.8]}
37... Kxc2 {[%clk 0:03:20.4]} 38. h4 {[%clk 0:02:29]} 38... Kb2 {[%clk
0:03:18.9]} 39. h5 {[%clk 0:02:27.9]} 39... c3 {[%clk 0:03:18.3]} 40. Rf4 {[%clk
0:02:27]} 40... Rxf4+ {[%clk 0:03:12.8]} 41. gxf4 {[%clk 0:02:25.5]} 41... c2
{[%clk 0:03:12]} 42. h6 {[%clk 0:02:24.8]} 42... c1=Q {[%clk 0:03:10.8]} 43. h7
{[%clk 0:02:24.1]} 43... Qxf4+ {[%clk 0:03:09.6]} 44. Ke2 {[%clk 0:02:22.5]} 0-1